bitfinex/quotes_ETHUSD_20250711
["timestamp","ask_amount","ask_price","bid_price","bid_amount"]
[1752226285467,5.49943409,3012.0,3011.9,54.41848068]
[1752226285876,2e-08,3012.0,3011.9,54.41848068]
[1752226286106,0.002,3012.4,3012.1,30.0]
[1752226286308,6.49820487,3012.6,3012.4,10.0]
[1752226286503,6.49820487,3012.6,3012.5,26.66851533]
[1752226286664,6.33240974,3012.6,3012.5,24.28803531]
[1752226286889,6.33240974,3012.6,3012.5,23.41359231]
[1752226287217,6.16669813,3012.6,3012.5,27.84935231]
[1752226287528,6.00098652,3012.6,3012.5,27.02123631]
[1752226287931,5.83527491,3012.6,3012.5,27.02123631]
[1752226288101,5.83527491,3012.6,3012.5,26.33523631]
[1752226288307,5.6695633,3012.6,3012.5,26.33523631]
[1752226288630,6.61385169,3012.6,3012.5,26.33523631]
[1752226289003,6.44814008,3012.6,3012.5,26.7746404]
[1752226289205,6.44814008,3012.6,3012.5,46.6557504]
[1752226289514,6.28242847,3012.6,3012.5,40.7422844]
[1752226289705,6.28242847,3012.6,3012.5,28.4028284]
[1752226290035,6.11671686,3012.6,3012.5,28.4028284]
[1752226290191,5.95100525,3012.6,3012.5,30.8328584]
[1752226290393,5.95100525,3012.6,3012.5,30.1820274]
[1752226290594,5.78529364,3012.6,3012.5,30.1820274]
[1752226291031,6.72958203,3012.6,3012.5,29.90822331]
[1752226291216,6.72958203,3012.6,3012.5,46.38194631]
[1752226291395,6.56387042,3012.6,3012.5,46.93194631]
[1752226291791,6.39815881,3012.6,3012.5,48.92364755]
[1752226292223,6.2324472,3012.6,3012.5,48.92364755]
[1752226292630,6.06677622,3012.6,3012.5,48.92364755]
[1752226293092,5.90110524,3012.6,3012.5,48.92364755]
[1752226293603,9.0374855,3013.0,3012.9,10.0]
[1752226293794,8.87181452,3013.0,3012.9,49.067068]
[1752226293991,8.87181452,3013.0,3012.9,49.232668]
[1752226294203,8.70614354,3013.0,3012.9,49.232668]
[1752226294435,8.70614354,3013.0,3012.9,38.13973]
[1752226294645,8.54047256,3013.0,3012.9,38.51662]
[1752226294942,8.37480158,3013.0,3012.9,38.51662]
[1752226295304,8.2091306,3013.0,3012.9,19.69294631]
[1752226295497,8.2091306,3013.0,3012.9,41.17708131]
[1752226295697,8.04345962,3013.0,3012.9,29.062526]
[1752226295903,8.04345962,3013.0,3012.9,27.916677]
[1752226296133,8.98778864,3013.0,3012.9,23.840215]
[1752226296298,8.98778864,3013.0,3012.9,28.911215]
[1752226296641,8.82211766,3013.0,3012.9,28.956315]
[1752226297062,8.65644668,3013.0,3012.9,28.956315]
[1752226297427,8.4907757,3013.0,3012.9,20.226206]
[1752226297615,8.4907757,3013.0,3012.9,31.296298]
[1752226297823,8.32510472,3013.0,3012.9,0.1656]
[1752226298184,9.15781519,3013.0,3012.7,0.2681]
[1752226298330,8.32510472,3013.0,3012.8,5.2376]
[1752226298661,9.43510472,3013.0,3012.8,5.2376]
[1752226298861,9.43510472,3013.0,3012.9,7.986592]
[1752226299162,9.43510472,3013.0,3012.9,17.986592]
[1752226299362,9.26946118,3013.0,3012.9,18.61147031]
[1752226299655,9.10381764,3013.0,3012.9,42.09958531]
[1752226299858,9.10381764,3013.0,3012.9,38.97934031]
[1752226300031,9.10381764,3013.0,3012.9,22.32449931]
[1752226300232,9.10381764,3013.0,3012.9,17.25049931]
[1752226300551,9.10381764,3013.0,3012.9,18.017]
[1752226301057,10.21381764,3013.0,3012.9,18.017]
[1752226301460,10.21381764,3013.0,3012.9,12.944]
[1752226301758,10.21381764,3013.0,3012.9,18.017]
[1752226303067,10.21381764,3013.0,3012.4,3.313]
[1752226303068,10.21381764,3013.0,3012.6,0.2681]
[1752226303222,10.21381764,3013.0,3012.8,0.1656]
[1752226303424,12.3453994,3013.0,3012.8,0.1656]
[1752226303623,12.3453994,3013.0,3012.2,0.38480133]
[1752226303624,12.5109994,3013.0,3012.9,5.072]
[1752226303924,12.5109994,3013.0,3012.5,0.1656]
[1752226304137,12.3453994,3013.0,3012.2,10.45927831]
[1752226304460,0.1656,3012.8,3012.5,0.001]
[1752226304624,0.1656,3012.8,3012.6,5.073]
[1752226304625,0.17245,3012.7,3012.6,5.073]
[1752226305023,0.17245,3012.7,3012.6,15.073]
[1752226305550,0.1656,3012.8,3012.5,0.001]
[1752226305766,1.5589,3012.9,3012.6,5.074]
[1752226305933,1.11,3012.8,3012.7,15.074]
[1752226306274,1.11,3012.8,3012.7,5.074]
[1752226306475,1.7203,3012.7,3012.5,0.001]
[1752226306630,0.28303,3012.6,3012.5,0.001]
[1752226306825,2.1047,3012.6,3012.5,0.001]
[1752226307053,2.1047,3012.6,3012.5,5.078]
[1752226307255,2.1047,3012.6,3012.5,15.078]
[1752226308047,2.1047,3012.6,3012.5,5.078]
[1752226308253,3.2147,3012.6,3012.5,5.078]
[1752226308454,0.55,3012.5,3012.0,10.0]
[1752226308660,1.5433,3012.4,3011.5,0.16437092]
[1752226308861,1.5433,3012.2,3011.5,0.16437092]
[1752226309170,1.5433,3012.2,3012.0,10.0]
[1752226309753,1.5433,3012.2,3012.1,15.077]
[1752226309934,1.75263,3012.2,3012.1,15.077]
[1752226310134,1.75263,3012.2,3012.1,10.0]
[1752226310432,1.75263,3012.2,3011.5,0.16437092]
[1752226310433,0.55,3012.1,3011.9,8.20313437]
[1752226310660,2.0933,3012.0,3011.9,8.20313437]
[1752226310870,2.0933,3012.0,3011.9,13.27913437]
[1752226311035,2.434563,3012.0,3011.9,23.27913437]
[1752226311430,1.884563,3012.0,3011.9,23.27913437]
[1752226311655,1.5433,3012.0,3011.9,23.27913437]
[1752226312278,1.11,3012.2,3012.0,10.0]
[1752226312448,1.11,3012.2,3012.1,15.076]
[1752226312970,2.22,3012.2,3012.1,15.076]
[1752226313385,2.22,3012.2,3012.1,15.53527831]
[1752226315580,3.33,3012.2,3012.1,15.53527831]
[1752226316848,3.33,3012.2,3012.1,15.92007964]
[1752226317391,3.33,3012.2,3012.1,18.27593364]
[1752226317573,3.33,3012.2,3012.1,15.92007964]
[1752226317894,3.33,3012.2,3012.1,22.08392364]
[1752226318049,4.44,3012.2,3012.1,22.08392364]
[1752226319785,4.44,3012.2,3012.1,22.24952364]
[1752226320827,5.55,3012.2,3012.1,22.24952364]
[1752226321497,5.55,3012.2,3012.1,16.08567964]
[1752226321673,5.55,3012.2,3012.1,46.08567964]
[1752226322194,5.38425488,3012.2,3012.1,46.35377964]
[1752226322374,5.21850976,3012.2,3012.1,46.35377964]
[1752226322554,1.11,3012.6,3012.2,10.2681]
[1752226322757,1.11,3012.6,3012.5,31.047167]
[1752226322962,1.11,3012.6,3012.5,29.970422]
[1752226323161,2.22,3012.6,3012.5,29.970422]
[1752226323600,2.22,3012.6,3012.5,19.384085]
[1752226323905,2.22,3012.6,3012.5,10.0]
[1752226324104,2.22,3012.6,3012.5,15.074]
[1752226324254,2.22,3012.6,3012.5,10.0]
[1752226324594,2.3856,3012.6,3012.5,5.077]
[1752226324795,2.73516,3012.6,3012.5,5.078]
[1752226324997,2.73516,3012.6,3012.0,10.1656]
[1752226325304,2.56956,3012.6,3012.1,5.078]
[1752226325502,1.6762,3012.3,3012.2,5.078]
[1752226325710,0.1656,3012.3,3012.2,5.078]
[1752226326001,0.1656,3012.3,3012.2,15.078]
[1752226327458,3.33,3012.6,3012.3,10.0]
[1752226327663,3.33,3012.6,3012.5,10.0]
[1752226327891,4.44,3012.6,3012.5,10.0]
[1752226330281,5.55,3012.6,3012.5,10.0]
[1752226332773,6.66,3012.6,3012.5,10.0]
[1752226333188,6.66,3012.6,3012.5,10.45927831]
[1752226333369,6.66,3012.6,3012.5,10.62487831]
[1752226333572,6.66,3012.6,3012.5,32.19112531]
[1752226333810,6.66,3012.6,3012.5,15.68153131]
[1752226334518,6.66,3012.6,3012.5,10.89297831]
[1752226334710,6.66,3012.6,3012.5,30.04855531]
[1752226335411,7.77,3012.6,3012.5,30.04855531]
[1752226335566,7.77,3012.6,3012.5,40.89297831]
[1752226335985,7.77,3012.6,3012.5,45.96697831]
[1752226336530,1.11,3012.8,3012.7,40.0]
[1752226336731,1.11,3012.8,3012.7,18.051561]
[1752226337040,1.11,3012.8,3012.7,19.816561]
[1752226337197,0.94428729,3012.8,3012.7,20.366561]
[1752226337530,0.94428729,3012.8,3012.7,19.44564064]
[1752226337839,0.94428729,3012.8,3012.7,33.93649231]
[1752226337987,2.05428729,3012.8,3012.7,39.01649231]
[1752226338187,2.05428729,3012.8,3012.7,33.93649231]
[1752226338405,2.05428729,3012.8,3012.7,39.01749231]
[1752226338600,2.05428729,3012.8,3012.7,45.80837831]
[1752226339109,2.05428729,3012.8,3012.7,31.73932431]
[1752226339312,2.05428729,3012.8,3012.7,10.0]
[1752226339553,2.05428729,3012.8,3012.7,5.08]
[1752226340050,2.05428729,3012.8,3012.7,35.825825]
[1752226340202,2.05428729,3012.8,3012.7,35.60596831]
[1752226340397,2.05428729,3012.8,3012.7,33.69176331]
[1752226340398,3.16428729,3012.8,3012.7,33.69176331]
[1752226340725,3.01128729,3012.8,3012.7,33.69176331]
[1752226340921,3.01128729,3012.8,3012.7,15.53927831]
[1752226341124,3.01128729,3012.8,3012.7,35.85802631]
[1752226341339,3.01128729,3012.8,3012.7,34.45791731]
[1752226341643,3.01128729,3012.8,3012.7,13.409034]
[1752226341840,4.44499778,3012.8,3012.2,3.313]
[1752226342076,4.44499778,3012.8,3012.3,5.083]
[1752226342204,4.44499778,3012.8,3012.4,10.0]
[1752226342540,4.44499778,3012.8,3011.9,8.47123437]
[1752226342743,4.44499778,3012.8,3012.0,8.00337353]
[1752226342914,4.12128729,3012.8,3012.2,7.769006]
[1752226343120,4.12128729,3012.8,3011.9,8.47123437]
[1752226343121,4.12128729,3012.8,3012.3,15.082]
[1752226344341,4.12128729,3012.8,3012.5,10.0]
[1752226344543,4.12128729,3012.8,3012.7,10.0]
[1752226345300,5.23128729,3012.8,3012.7,10.0]
[1752226347023,5.23128729,3012.8,3012.7,17.952]
[1752226347443,5.23128729,3012.8,3012.7,23.032]
[1752226347938,6.34128729,3012.8,3012.7,23.032]
[1752226348909,6.34128729,3012.8,3012.7,17.952]
[1752226349110,6.34128729,3012.8,3012.7,23.031]
[1752226349837,6.34128729,3012.8,3012.7,23.75837831]
[1752226350149,6.34128729,3012.8,3012.7,23.65587831]
[1752226350311,7.45128729,3012.8,3012.7,23.65587831]
[1752226352841,7.45128729,3012.8,3012.7,23.1946]
[1752226352842,8.56128729,3012.8,3012.7,23.1946]
[1752226353254,8.56328729,3012.8,3012.7,23.1946]
[1752226354141,8.56328729,3012.8,3012.7,23.1936]
[1752226354634,8.56328729,3012.8,3012.7,18.1176]
[1752226354840,8.56328729,3012.8,3012.7,23.1926]
[1752226355005,8.56328729,3012.8,3012.7,18.1176]
[1752226355348,9.67328729,3012.8,3012.7,23.1926]
[1752226357971,10.78328729,3012.8,3012.7,23.1926]
[1752226358166,10.78328729,3012.8,3012.7,18.1176]
[1752226358469,10.78328729,3012.8,3012.7,23.1906]
[1752226360336,11.89328729,3012.8,3012.7,23.1906]
[1752226360643,11.89328729,3012.8,3012.7,24.87871]
[1752226360847,11.89328729,3012.8,3012.7,31.28829431]
[1752226361870,11.89328729,3012.8,3012.7,48.46398031]
[1752226362072,11.89328729,3012.8,3012.7,47.45528031]
[1752226362479,11.72760972,3012.8,3012.7,48.39008164]
[1752226362780,11.98476751,3012.8,3012.7,55.18467964]
[1752226363258,11.81908994,3012.8,3012.7,55.18467964]
[1752226363458,11.21890177,3012.8,3012.7,27.17624866]
[1752226363645,10.65880968,3012.8,3012.7,57.17624866]
[1752226363851,6.9057068,3012.8,3012.7,57.17667964]
[1752226364059,6.74002923,3012.8,3012.7,57.17667964]
[1752226364265,6.74002923,3012.8,3012.7,59.16824866]
[1752226364473,6.57435166,3012.8,3012.7,59.16824866]
[1752226364879,6.40867409,3012.8,3012.7,59.16824866]
[1752226365171,7.35299652,3012.8,3012.7,59.16824866]
[1752226365578,4.5834145,3012.8,3012.7,59.16824866]
[1752226365784,1.85970014,3012.8,3012.7,59.16824866]
[1752226365942,1.69402257,3012.8,3012.7,66.81966001]
[1752226366142,1.69402257,3012.8,3012.7,74.74966001]
[1752226366342,1.528345,3012.8,3012.7,74.74966001]
[1752226366743,1.36266743,3012.8,3012.7,74.74966001]
[1752226367164,1.19698986,3012.8,3012.7,66.81966001]
[1752226367444,1.19698986,3012.8,3012.7,70.95366001]
[1752226367644,2.14131229,3012.8,3012.7,70.95366001]
[1752226367976,1.97563472,3012.8,3012.7,65.88066001]
[1752226368186,5.85568737,3013.0,3012.9,45.13343682]
[1752226368390,0.002,3013.2,3013.1,32.87320463]
[1752226368684,0.002,3013.2,3013.1,52.36938427]
[1752226368851,1.112,3013.7,3013.6,30.0]
[1752226369060,1.112,3013.7,3013.6,45.2376]
[1752226370284,2.222,3013.7,3013.6,45.2376]
[1752226370653,2.222,3013.7,3013.6,46.0557]
[1752226371183,2.05639487,3013.7,3013.6,53.05452795]
[1752226371483,1.89078974,3013.7,3013.6,53.43932928]
[1752226371979,1.72518461,3013.7,3013.6,23.77122928]
[1752226372278,1.55957948,3013.7,3013.6,69.32264013]
[1752226372672,1.55957948,3013.7,3013.6,67.33166588]
[1752226372673,2.50397435,3013.7,3013.6,67.33166588]
[1752226372979,2.33836922,3013.7,3013.6,39.32264013]
[1752226373179,2.33836922,3013.7,3013.6,62.25966588]
[1752226373367,2.17276409,3013.7,3013.6,62.38917024]
[1752226373576,2.17276409,3013.7,3013.6,54.76775939]
[1752226373752,2.00715896,3013.7,3013.6,49.69775939]
[1752226374077,2.00715896,3013.7,3013.6,58.86517539]
[1752226374281,1.74155383,3013.7,3013.6,58.86517539]
[1752226374481,1.74155383,3013.7,3013.6,53.79417539]
[1752226374686,1.5759487,3013.7,3013.6,58.86517539]
[1752226374889,1.5759487,3013.7,3013.6,53.46227539]
[1752226375212,2.52034357,3013.7,3013.6,58.53227539]
[1752226375491,2.52034357,3013.7,3013.6,37.63849739]
[1752226375649,2.52034357,3013.7,3013.6,17.55343839]
[1752226375856,2.52034357,3013.7,3013.6,27.55343839]
[1752226376087,2.52034357,3013.7,3013.6,29.84798339]
[1752226377088,2.52034357,3013.7,3013.6,45.19473839]
[1752226377285,2.52034357,3013.7,3013.6,53.14373839]
[1752226377501,3.63034357,3013.7,3013.6,54.3058167]
[1752226378178,3.63034357,3013.7,3013.6,57.9010497]
[1752226378491,3.63034357,3013.7,3013.6,48.3734537]
[1752226378786,3.63034357,3013.7,3013.6,41.95046339]
[1752226379285,3.63034357,3013.7,3013.6,44.47046339]
[1752226379880,4.74034357,3013.7,3013.6,44.47046339]
[1752226380075,4.74034357,3013.7,3013.6,56.64202139]
[1752226380275,4.74034357,3013.7,3013.6,57.19202139]
[1752226380595,4.74034357,3013.7,3013.6,27.99177139]
[1752226380755,4.74034357,3013.7,3013.6,51.66897139]
[1752226380957,4.74034357,3013.7,3013.6,36.73858939]
[1752226381164,4.74034357,3013.7,3013.6,54.95260939]
[1752226382161,4.74034357,3013.7,3013.6,56.73897139]
[1752226382361,5.85034357,3013.7,3013.6,56.73897139]
[1752226382557,5.85034357,3013.7,3013.6,39.07408439]
[1752226382884,8.52797793,3013.7,3013.6,8.19137139]
[1752226383093,8.52797793,3013.7,3013.6,13.26137139]
[1752226383094,8.69357793,3013.7,3013.6,13.26137139]
[1752226383262,8.52797793,3013.7,3013.6,23.26137139]
[1752226383763,7.94274357,3013.7,3013.6,23.26137139]
[1752226384299,7.47864357,3013.7,3013.6,23.26137139]
[1752226384502,7.94274357,3013.7,3013.6,23.26137139]
[1752226384660,7.94274357,3013.7,3013.6,18.19137139]
[1752226384661,9.05274357,3013.7,3013.6,18.19137139]
[1752226384857,9.05274357,3013.7,3013.6,13.26237139]
[1752226385058,9.97477793,3013.7,3013.6,23.26237139]
[1752226385304,10.14037793,3013.7,3013.6,23.26237139]
[1752226386401,8.58864357,3013.7,3013.6,23.26237139]
[1752226386608,8.58864357,3013.7,3013.6,23.69707139]
[1752226386774,8.58864357,3013.7,3013.6,23.26237139]
[1752226386975,9.05274357,3013.7,3013.6,18.19137139]
[1752226387209,10.16274357,3013.7,3013.6,23.26437139]
[1752226388115,8.07034357,3013.7,3013.6,23.26437139]
[1752226388274,8.07034357,3013.7,3013.6,29.12921539]
[1752226388871,8.07034357,3013.7,3013.6,54.3239497]
[1752226389173,8.07034357,3013.7,3013.6,53.8892497]
[1752226389708,9.18034357,3013.7,3013.6,53.8892497]
[1752226390614,9.18034357,3013.7,3013.6,54.3239497]
[1752226390799,9.18034357,3013.7,3013.6,54.5920497]
[1752226391874,9.18034357,3013.7,3013.6,24.5920497]
[1752226392108,10.29034357,3013.7,3013.6,54.5920497]
[1752226392271,10.29034357,3013.7,3013.6,55.1420497]
[1752226393308,6.76061584,3013.7,3013.6,55.1420497]
[1752226393512,0.002,3014.1,3013.6,55.1420497]
[1752226393811,0.002,3014.1,3014.0,40.0]
[1752226393979,0.002,3014.1,3014.0,45.2376]
[1752226394176,0.002,3014.1,3014.0,40.1656]
[1752226394518,1.61091084,3014.1,3014.0,18.59302]
[1752226394680,1.11001084,3014.1,3014.0,18.59302]
[1752226395013,1.57411084,3014.1,3014.0,20.88902]
[1752226396123,1.11001084,3014.1,3014.0,21.32801]
[1752226396423,1.11001084,3014.1,3014.0,20.89331]
[1752226397146,1.11001084,3014.1,3014.0,22.77151]
[1752226397421,2.22001084,3014.1,3014.0,22.77151]
[1752226398290,2.22001084,3014.1,3014.0,25.707802]
[1752226398928,2.68411084,3014.1,3014.0,20.89331]
[1752226399320,2.22001084,3014.1,3014.0,20.89331]
[1752226399784,3.33001084,3014.1,3014.0,20.89331]
[1752226400218,3.33001084,3014.1,3014.0,20.89431]
[1752226400410,3.33001084,3014.1,3014.0,45.2376]
[1752226401213,3.33001084,3014.1,3014.0,41.835942]
[1752226401524,3.33001084,3014.1,3014.0,44.767942]
[1752226402088,3.33001084,3014.1,3014.0,52.716942]
[1752226402296,4.44001084,3014.1,3014.0,23.1866]
[1752226402515,4.44001084,3014.1,3014.0,53.1866]
[1752226403319,4.44001084,3014.1,3014.0,53.6213]
[1752226403625,4.44001084,3014.1,3014.0,53.1866]
[1752226404011,4.41001084,3014.1,3014.0,54.08057831]
[1752226404683,5.52001084,3014.1,3014.0,54.08057831]
[1752226405223,5.52001084,3014.1,3014.0,54.63057831]
[1752226405421,5.52001084,3014.1,3014.0,54.66527831]
[1752226407124,6.63001084,3014.1,3014.0,54.206]
[1752226408324,6.63001084,3014.1,3014.0,54.66527831]
[1752226408539,6.63001084,3014.1,3014.0,44.36187]
[1752226408826,6.63001084,3014.1,3014.0,53.7346]
[1752226409321,6.63001084,3014.1,3014.0,54.204]
[1752226409488,7.74001084,3014.1,3014.0,54.66327831]
[1752226409685,7.74001084,3014.1,3014.0,49.59427831]
[1752226409889,7.74001084,3014.1,3014.0,54.66327831]
[1752226411415,7.74001084,3014.1,3014.0,40.295195]
[1752226411792,7.74001084,3014.1,3014.0,48.570332]
[1752226411986,8.85001084,3014.1,3014.0,48.570332]
[1752226412391,8.85001084,3014.1,3014.0,49.039732]
[1752226412826,8.85001084,3014.1,3014.0,54.204]
[1752226413326,8.85001084,3014.1,3014.0,49.59427831]
[1752226413633,8.85001084,3014.1,3014.0,54.66327831]
[1752226414537,9.96001084,3014.1,3014.0,54.66327831]
[1752226414895,9.96001084,3014.1,3014.0,40.695335]
[1752226415091,9.96001084,3014.1,3014.0,45.764335]
[1752226415908,9.96001084,3014.1,3014.0,53.7346]
[1752226416109,9.96001084,3014.1,3014.0,54.204]
[1752226417123,11.07001084,3014.1,3014.0,54.46197831]
[1752226417299,11.07001084,3014.1,3014.0,54.93137831]
[1752226417839,11.07001084,3014.1,3014.0,52.522709]
[1752226418010,11.07001084,3014.1,3014.0,25.719475]
[1752226418209,11.53321084,3014.1,3014.0,30.788475]
[1752226418418,11.07001084,3014.1,3014.0,30.788475]
[1752226418948,11.07001084,3014.1,3014.0,47.671807]
[1752226419644,12.18001084,3014.1,3014.0,48.141207]
[1752226419812,12.18001084,3014.1,3014.0,48.86858531]
[1752226419997,12.18001084,3014.1,3014.0,54.93137831]
[1752226420403,12.18001084,3014.1,3014.0,62.55278916]
[1752226420817,12.18001084,3014.1,3014.0,57.01438916]
[1752226421013,12.18001084,3014.1,3014.0,31.35501085]
[1752226421226,12.18001084,3014.1,3014.0,61.35501085]
[1752226421605,12.18201084,3014.1,3014.0,61.35501085]
[1752226422006,13.29201084,3014.1,3014.0,61.35501085]
[1752226422607,13.29201084,3014.1,3014.0,56.75641085]
[1752226422841,13.29201084,3014.1,3014.0,61.82441085]
[1752226424511,14.40201084,3014.1,3014.0,62.28368916]
[1752226424720,14.40201084,3014.1,3014.0,56.74628916]
[1752226424930,14.40201084,3014.1,3014.0,52.80763885]
[1752226425246,14.40201084,3014.1,3014.0,52.573388]
[1752226425448,14.40201084,3014.1,3014.0,47.505388]
[1752226425602,14.40201084,3014.1,3014.0,36.34143231]
[1752226425808,14.40201084,3014.1,3014.0,37.07893231]
[1752226426110,14.40201084,3014.1,3014.0,35.882154]
[1752226426310,14.40201084,3014.1,3014.0,51.502991]
[1752226427041,15.51201084,3014.1,3014.0,51.502991]
[1752226427248,15.51201084,3014.1,3014.0,23.7336]
[1752226427442,15.51201084,3014.1,3014.0,54.975667]
[1752226427641,15.51201084,3014.1,3014.0,54.025057]
[1752226427955,15.51201084,3014.1,3014.0,61.17706785]
[1752226428113,15.51201084,3014.1,3014.0,59.80641885]
[1752226428311,15.51201084,3014.1,3014.0,51.33158485]
[1752226428625,15.51201084,3014.1,3014.0,53.85575285]
[1752226428819,15.51201084,3014.1,3014.0,48.78775285]
[1752226429024,15.51201084,3014.1,3014.0,53.85575285]
[1752226429355,15.51201084,3014.1,3014.0,61.35501085]
[1752226429552,16.62201084,3014.1,3014.0,61.35501085]
[1752226429846,16.62201084,3014.1,3014.0,51.55787085]
[1752226430052,16.62201084,3014.1,3014.0,53.81652485]
[1752226430229,16.62201084,3014.1,3014.0,46.195114]
[1752226430440,16.62201084,3014.1,3014.0,47.100703]
[1752226430951,16.62201084,3014.1,3014.0,43.062828]
[1752226431321,16.62201084,3014.1,3014.0,42.241349]
[1752226431645,16.62201084,3014.1,3014.0,54.93037831]
[1752226432008,17.73201084,3014.1,3014.0,54.93037831]
[1752226432409,17.56641887,3014.1,3014.0,49.39297831]
[1752226432640,17.56641887,3014.1,3014.0,54.46097831]
[1752226432850,17.56641887,3014.1,3014.0,54.93037831]
[1752226432851,17.4008269,3014.1,3014.0,54.93037831]
[1752226433346,17.23523493,3014.1,3014.0,67.55903965]
[1752226433545,17.06964296,3014.1,3014.0,67.55903965]
[1752226433946,13.59066244,3014.1,3014.0,69.2324715]
[1752226434155,2.87896264,3014.1,3014.0,67.55903965]
[1752226434445,3.82337067,3014.1,3014.0,37.55903965]
[1752226434859,3.6577787,3014.1,3014.0,67.55903965]
[1752226435151,3.49218673,3014.1,3014.0,67.55903965]
[1752226435326,2.19218673,3014.1,3014.0,67.55903965]
[1752226435649,2.02659476,3014.1,3014.0,67.55903965]
[1752226435946,1.86100279,3014.1,3014.0,67.55903965]
[1752226436453,1.69541082,3014.1,3014.0,67.55903965]
[1752226436811,2.63981885,3014.1,3014.0,67.55903965]
[1752226437215,2.47426965,3014.1,3014.0,71.69103965]
[1752226437616,2.30872045,3014.1,3014.0,71.69103965]
[1752226438047,2.14317125,3014.1,3014.0,71.69103965]
[1752226438453,1.97762205,3014.1,3014.0,71.69103965]
[1752226438817,1.81207285,3014.1,3014.0,66.62303965]
[1752226439049,1.81207285,3014.1,3014.0,71.69103965]
[1752226439353,2.75652365,3014.1,3014.0,67.55903965]
[1752226439516,2.75652365,3014.1,3014.0,29.61003965]
[1752226439517,2.59097445,3014.1,3014.0,29.61003965]
[1752226439716,2.59097445,3014.1,3014.0,59.61003965]
[1752226439929,2.42542525,3014.1,3014.0,59.61003965]
[1752226440148,0.002,3014.3,3014.2,2.54057793]
[1752226440320,1.11,3014.6,3014.5,10.55]
[1752226440519,0.002,3015.0,3014.7,30.0]
[1752226440724,0.9444508,3014.9,3014.8,50.02727831]
[1752226440940,0.9444508,3014.9,3014.8,52.01746007]
[1752226441259,6.0158,3015.6,3015.2,0.2681]
[1752226441260,4.44,3015.6,3015.2,0.2681]
[1752226441563,4.2744508,3015.6,3015.5,30.7656]
[1752226441763,4.2744508,3015.6,3015.5,8.876872]
[1752226441918,4.2744508,3015.6,3015.5,5.9124]
[1752226441919,4.7037508,3015.6,3015.5,5.9124]
[1752226442362,4.2744508,3015.6,3015.5,11.02156199]
[1752226442524,4.2744508,3015.6,3015.5,10.9884]
[1752226442716,4.2744508,3015.6,3015.5,20.279947]
[1752226442916,4.2744508,3015.6,3015.5,13.608831]
[1752226443159,4.2744508,3015.6,3015.5,16.480016]
[1752226443369,4.2744508,3015.6,3015.3,3.309]
[1752226443370,6.50789588,3015.6,3015.3,3.309]
[1752226443658,1.584,3015.5,3015.4,5.076]
[1752226443824,1.584,3015.5,3014.5,20.368499]
[1752226444023,1.584,3015.5,3014.6,5.079]
[1752226444221,1.5715,3015.3,3014.7,17.934793]
[1752226444421,1.5715,3015.3,3014.4,3.311]
[1752226444422,1.5715,3015.3,3014.9,10.0]
[1752226444670,1.5715,3015.3,3014.5,10.722264]
[1752226444849,1.5715,3015.3,3014.7,7.710749]
[1752226445050,1.5715,3015.3,3014.8,15.078]
[1752226445359,1.5715,3015.3,3014.9,5.078]
[1752226445565,1.5715,3015.3,3015.1,10.0]
[1752226445875,1.5715,3015.3,3014.9,22.317949]
[1752226445876,1.5715,3015.3,3015.2,15.11016529]
[1752226446024,1.5715,3015.3,3015.2,17.416592]
[1752226446224,1.5715,3015.3,3015.2,15.077]
[1752226446458,2.6815,3015.3,3015.2,15.32318208]
[1752226447166,2.6815,3015.3,3015.2,17.55518208]
[1752226447459,2.6815,3015.3,3015.2,35.36671408]
[1752226447821,2.6815,3015.3,3015.2,29.09757208]
[1752226448353,3.1108,3015.3,3015.2,22.00857208]
[1752226448665,3.1108,3015.3,3015.2,25.88018208]
[1752226448963,4.2208,3015.3,3015.2,25.88018208]
[1752226449728,4.2208,3015.3,3015.2,30.27538608]
[1752226449927,4.2208,3015.3,3015.2,23.26718208]
[1752226450242,4.2208,3015.3,3015.2,25.98877408]
[1752226450547,4.2208,3015.3,3015.2,23.26918208]
[1752226450749,4.2208,3015.3,3015.2,18.19218208]
[1752226450931,4.64288,3015.3,3015.2,23.26918208]
[1752226451124,4.64288,3015.3,3015.2,18.19218208]
[1752226451329,5.75288,3015.3,3015.2,23.26918208]
[1752226451927,5.75288,3015.3,3015.2,23.43478208]
[1752226452131,5.75288,3015.3,3015.2,18.35778208]
[1752226452358,5.3308,3015.3,3015.2,23.43278208]
[1752226453465,3.33,3015.3,3015.2,38.81327808]
[1752226453625,3.33,3015.3,3015.2,57.29278208]
[1752226453827,4.44,3015.3,3015.2,57.29278208]
[1752226454050,4.44,3015.3,3015.2,57.72868208]
[1752226454465,4.27444367,3015.3,3015.2,57.72868208]
[1752226454664,4.27444367,3015.3,3015.2,47.03468108]
[1752226454824,4.27444367,3015.3,3015.2,47.47058108]
[1752226455432,4.27444367,3015.3,3015.2,47.47158108]
[1752226455676,4.27444367,3015.3,3015.2,57.72968208]
[1752226455984,4.1089131,3015.3,3015.2,57.72968208]
[1752226456145,5.2189131,3015.3,3015.2,57.72968208]
[1752226456330,5.05338253,3015.3,3015.2,52.65368208]
[1752226456530,5.05338253,3015.3,3015.2,57.72868208]
[1752226456758,4.88785196,3015.3,3015.2,68.64217983]
[1752226456957,4.88785196,3015.3,3015.2,67.27455494]
[1752226457135,4.72232139,3015.3,3015.2,69.26447269]
[1752226457457,4.55679082,3015.3,3015.2,69.26447269]
[1752226457971,4.39126025,3015.3,3015.2,67.27455494]
[1752226458174,4.39126025,3015.3,3015.2,61.84536208]
[1752226458343,4.22572968,3015.3,3015.2,61.84536208]
[1752226458550,4.22572968,3015.3,3015.2,66.92136208]
[1752226458871,5.17019911,3015.3,3015.2,71.58937269]
[1752226459076,0.01189322,3015.3,3015.2,71.58937269]
[1752226459230,5.3844508,3015.6,3015.5,42.53971978]
[1752226459430,5.21892023,3015.6,3015.5,48.40461264]
[1752226459673,5.21892023,3015.6,3015.5,49.17241264]
[1752226459968,0.1,3016.0,3015.9,0.55]
[1752226460268,0.1,3016.0,3015.9,56.865]
[1752226460431,0.1,3016.0,3015.9,57.46754141]
[1752226460634,1.11,3016.4,3016.1,32.542]
[1752226460972,0.04112594,3017.6,3017.5,0.55]
[1752226461177,1.5015,3019.0,3017.6,10.0]
[1752226461178,0.98559537,3017.8,3017.6,10.0]
[1752226461471,0.8200648,3017.8,3017.7,35.28252369]